fUST/lending_fUST_20240208
["ID","MTS","AMOUNT","RATE_DAILY","PERIOD"]
[313431357,1707340238831,-500.0,0.00020822,2]
[313431358,1707340238841,-500.0,0.00020822,2]
[313431359,1707340238851,-500.0,0.00020822,2]
[313431360,1707340238860,-500.0,0.00020822,2]
[313431361,1707340238869,-500.0,0.00020822,2]
[313431362,1707340238878,-158.63198,0.00020822,2]
[313431363,1707340238887,-500.0,0.00020822,2]
[313431364,1707340238897,-500.0,0.00020822,2]
[313431365,1707340238906,-500.0,0.00020822,2]
[313431366,1707340238915,-500.0,0.00020822,2]
[313431367,1707340238924,-500.0,0.00020822,2]
[313431368,1707340238934,-500.0,0.00020822,2]
[313431369,1707340238943,-500.0,0.00020822,2]
[313431370,1707340238953,-500.0,0.00020822,2]
[313431371,1707340238962,-500.0,0.00020822,2]
[313431372,1707340239059,-500.0,0.00020822,2]
[313431373,1707340239072,-500.0,0.00020822,2]
[313431374,1707340239081,-549.35356382,0.00020822,2]
[313431375,1707340239090,-500.0,0.00020822,2]
[313431376,1707340239100,-500.0,0.00020822,2]
[313431377,1707340239109,-500.0,0.00020822,2]
[313431378,1707340239118,-500.0,0.00020822,2]
[313431379,1707340239127,-500.0,0.00020822,2]
[313431380,1707340239136,-259.62573117,0.00020822,2]
[313431381,1707340239145,-455.61329836,0.00020822,2]
[313431382,1707340239158,-44.38670164,0.00020822,2]
[313431383,1707340239167,-500.0,0.00020822,2]
[313431384,1707340239177,-500.0,0.00020822,2]
[313431385,1707340239186,-114.56983429,0.00020822,2]
[313431386,1707340239197,-264.903,0.00020822,2]
[313431387,1707340239213,-120.52716571,0.00020822,2]
[313431388,1707340239223,-500.0,0.00020822,2]
[313431389,1707340239232,-500.0,0.00020822,2]
[313431390,1707340239242,-500.0,0.00020822,2]
[313431391,1707340239252,-394.29369758,0.00020822,2]
[313431396,1707340241139,-105.70630242,0.00020822,2]
[313431397,1707340241150,-500.0,0.00020822,2]
[313431398,1707340241159,-500.0,0.00020822,2]
[313431399,1707340241169,-500.0,0.00020822,2]
[313431400,1707340241178,-500.0,0.00020822,2]
[313431401,1707340241188,-500.0,0.00020822,2]
[313431402,1707340241197,-499.96149211,0.00020822,2]
[313431403,1707340241207,-500.0,0.00020822,2]
[313431404,1707340241216,-161.01140674,0.00020822,2]
[313431405,1707340241227,-500.0,0.00020822,2]
[313431406,1707340241237,-500.0,0.00020822,2]
[313431407,1707340241247,-500.0,0.00020822,2]
[313431408,1707340241256,-500.0,0.00020822,2]
[313431409,1707340241266,-500.0,0.00020822,2]
[313431410,1707340241275,-500.0,0.00020822,2]
[313431411,1707340241284,-499.99999999,0.00020822,2]
[313431412,1707340241294,-500.0,0.00020822,2]
[313431413,1707340241303,-500.0,0.00020822,2]
[313431414,1707340241312,-500.0,0.00020822,2]
[313431415,1707340241321,-500.0,0.00020822,2]
[313431416,1707340241329,-417.65726053,0.00020822,2]
[313431417,1707340241338,-500.0,0.00020822,2]
[313431418,1707340241347,-251.06952568,0.00020822,2]
[313431419,1707340241356,-280.0,0.00020972,2]
[313431420,1707340241365,-233.63279379,0.00021,2]
[313431421,1707340241374,-7165.14947035,0.00021,2]
[313431422,1707340241383,-4925.20595844,0.00021,2]
[313431506,1707340243097,-155.04031048,0.00019064,3]
[313431508,1707340243106,-2480.96534002,0.00021,2]
[313431512,1707340243117,-7092.2345421,0.00021,2]
[313431582,1707340246036,-646.92773239,0.00020999,2]
[313431583,1707340246046,-1908.08280712,0.00021,2]
[313431584,1707340246055,-170.52332627,0.00021917,2]
[313431585,1707340246065,-166.666666,0.00021918,2]
[313431586,1707340246074,-3980.62518534,0.00022,2]
[313431587,1707340246084,-311.31447271,0.00022,2]
[313431588,1707340246094,-293.20559858,0.00022,4]
[313431589,1707340246103,-427.22785454,0.00022,2]
[313431590,1707340246113,-166.666666,0.00022431,2]
[313431591,1707340246122,-166.666666,0.00022944,2]
[313431592,1707340246131,-9967.3761107,0.00023,2]
[313431593,1707340246141,-1263.05688852,0.00023,2]
[313431594,1707340246151,-391.0,0.00023069,7]
[313431595,1707340246161,-166.666666,0.00023456,2]
[313431596,1707340246171,-7362.7733605,0.0002389,3]
[313431597,1707340246183,-11040.1166395,0.0002389,3]
[313431598,1707340246192,-1690.80901576,0.000239,2]
[313431599,1707340246201,-166.666666,0.00023969,2]
[313431600,1707340246212,-4039.14093432,0.00024,2]
[313431601,1707340246222,-166.666666,0.00024482,2]
[313431603,1707340246231,-252.658306,0.00024541,2]
[313431605,1707340246241,-6299.4069347,0.00025,2]
[313431607,1707340246250,-7405.75839739,0.00025,2]
[313431608,1707340246259,-335.52992191,0.00025,2]
[313431609,1707340246268,-4737.99496136,0.00025,2]
[313431610,1707340246278,-535.1407664,0.00025,2]
[313431611,1707340246287,-4397.71584247,0.00025,2]
[313431612,1707340246296,-5000.0,0.00025045,5]
[313431613,1707340246305,-869.18055187,0.00025297,2]
[313431614,1707340246315,-200.0,0.00025376,7]
[313431615,1707340246325,-348.0,0.00025376,7]
[313431616,1707340246334,-200.0,0.00025479,2]
[313431617,1707340246343,-777.14279739,0.00025751,2]
[313431618,1707340246352,-161.4945607,0.0002582,2]
[313431619,1707340246361,-295.73444606,0.0002583,2]
[313431620,1707340246371,-207.14640822,0.00025844,2]
[313431621,1707340246380,-261.53272338,0.00025844,2]
[313431622,1707340246389,-718.01783563,0.00025845,2]
[313431623,1707340246399,-1812.38877533,0.00025845,2]
[313431624,1707340246409,-2645.86617944,0.00025851,2]
[313431625,1707340246419,-1012.23145242,0.00025851,2]
[313431626,1707340246429,-78633.75755765,0.00025864,2]
[313431628,1707340246439,-26552.08611096,0.00025889,2]
[313431630,1707340246452,-27993.80833608,0.00025889,2]
[313431631,1707340246461,-4198.54435457,0.00025889,2]
[313431633,1707340246470,-151.98069963,0.00026097,2]
[313431634,1707340246481,-320.33442403,0.00026197,2]
[313431635,1707340246490,-343.80905475,0.00026197,2]
[313431636,1707340246500,-393.67707065,0.00026197,2]
[313431637,1707340246510,-1382.39428642,0.00027,2]
[313431638,1707340246520,-310.03255436,0.00027,2]
[313431639,1707340246530,-2043.57585819,0.00027,2]
[313431640,1707340246540,-500.0,0.00027397,2]
[313431641,1707340246550,-511.89299392,0.000275,2]
[313431642,1707340246559,-264.07279346,0.000275,2]
[313431643,1707340246568,-150.06101927,0.00027534,2]
[313431644,1707340246578,-777.14279735,0.0002762,2]
[313431645,1707340246588,-200.0,0.00027913,15]
[313431646,1707340246597,-200.0,0.00027913,15]
[313431647,1707340246607,-368.0,0.00027913,15]
[313431648,1707340246617,-155.05271792,0.00028,2]
[313431649,1707340246626,-1716.49476713,0.00028,2]
[313431650,1707340246635,-473.94435722,0.00028,2]
[313431651,1707340246645,-51930.88733907,0.00028,2]
[313431652,1707340246654,-1439.88606349,0.00028,20]
[313431653,1707340246664,-20471.27544973,0.000282,3]
[313431902,1707341441092,-1513.15613917,0.00019014,2]
[313431904,1707341441102,-535.43841798,0.00019015,2]
[313431906,1707341441111,-155.06047358,0.00019016,3]
[313431908,1707341441121,-155.06047358,0.00019016,2]
[313431910,1707341441130,-179.18619241,0.00019017,2]
[313431912,1707341441140,-2822.01569009,0.00019017,2]
[313431914,1707341441149,-352.18460138,0.00019018,2]
[313431916,1707341441158,-3755.69529023,0.00019018,2]
[313431918,1707341441167,-4179.85662615,0.00019018,2]
[313431920,1707341441176,-20929.45735728,0.00019019,2]
[313431922,1707341441184,-13317.72807776,0.00019021,2]
[313431924,1707341441196,-1000.0,0.00019021,2]
[313431958,1707341441507,-2186.99958349,0.00019021,2]
[313432168,1707341443256,-8489.0,0.00019021,2]
[313432328,1707341446284,-1476.12834241,0.00019021,2]
[313432329,1707341446295,-1641.75376772,0.00019021,2]
[313432330,1707341446306,-260.67799851,0.00019021,2]
[313432473,1707342634346,-155.05737123,0.0001865,2]
[313432474,1707342634355,-535.43841798,0.0001865,2]
[313432475,1707342634365,-155.05737123,0.0001865,2]
[313432476,1707342634374,-3755.69529023,0.00018651,2]
[313432477,1707342634383,-179.18619241,0.00018651,2]
[313432478,1707342634392,-167.22496809,0.00018651,2]
[313432479,1707342634406,-1818.961452,0.00018651,2]
[313432526,1707342638438,-352.18460138,0.00018649,2]
[313432528,1707342638447,-1407.64366567,0.00018651,2]
[313432530,1707342638460,-4778.96406538,0.00018651,2]
[313432803,1707342641582,-28888.87001582,0.00018651,2]
[313432804,1707342641591,-155.05737123,0.00018652,3]
[313432805,1707342641600,-2497.04865885,0.00018693,2]
[313432806,1707342641612,-946.56718885,0.00018693,2]
[313432807,1707342641621,-932.88744453,0.000188,2]
[313432808,1707342641631,-915.78245579,0.000189,2]
[313432809,1707342641641,-523.37302151,0.00019019,2]
[313432810,1707342641650,-2236.37791908,0.00019019,2]
[313432811,1707342641659,-1487.43821611,0.00019019,2]
[313432812,1707342641668,-167.95598,0.00019178,2]
[313432813,1707342641676,-168.872111,0.00019178,2]
[313432814,1707342641685,-798.98539283,0.0002,2]
[313432815,1707342641698,-402.68016115,0.0002,2]
[313432816,1707342641707,-741.39467799,0.00020526,2]
[313432817,1707342641716,-200.0,0.00020527,2]
[313432818,1707342641726,-179.38230806,0.00020998,2]
[313432819,1707342641735,-1016.61711939,0.00020998,2]
[313432820,1707342641743,-4059.80573695,0.00020998,2]
[313432821,1707342641759,-1160.04453914,0.00020998,2]
[313432822,1707342641768,-166.666666,0.00021918,2]
[313432823,1707342641777,-2222.59788097,0.00022,2]
[313432867,1707342643451,-4179.85662615,0.0001865,2]
[313432869,1707342643461,-588.20337385,0.00022,2]
[313433126,1707342646461,-155.3678163,0.00021999,2]
[313433127,1707342646470,-155.05737123,0.00021999,2]
[313433128,1707342646479,-179.18619241,0.00021999,2]
[313433129,1707342646488,-1169.82393052,0.00022,2]
[313433130,1707342646498,-166.666666,0.00022431,2]
[313433131,1707342646506,-280.0,0.0002258,7]
[313433132,1707342646515,-650.86067534,0.0002294,3]
[313433133,1707342646526,-13988.40954663,0.0002294,3]
[313433170,1707343382346,3415.54,0.00029,30]
[313433205,1707343832487,-535.43841798,0.00018506,2]
[313433206,1707343832497,-151.15921458,0.00018507,3]
[313433207,1707343832508,-3.90746409,0.00018507,3]
[313433208,1707343832517,-155.06667867,0.00018507,2]
[313433209,1707343832527,-179.18619241,0.00018508,2]
[313433211,1707343832536,-4179.85662615,0.00018509,2]
[313433212,1707343832545,-2951.73084113,0.00018514,2]
[313433215,1707343832557,-4861.05829402,0.00018514,2]
[313433216,1707343832577,-820.711415,0.00018549,2]
[313433217,1707343832588,-195.40325617,0.0001855,2]
[313433218,1707343832598,-6404.0756973,0.00018851,2]
[313433220,1707343832607,-1018.0,0.00018952,2]
[313433222,1707343832618,-215.60591,0.00019238,2]
[313433224,1707343832627,-200.0,0.00020364,2]
[313433225,1707343832637,-167.95598,0.00020481,2]
[313433227,1707343832646,-658.61777854,0.0002084,2]
[313433400,1707343844175,-186.69015902,0.0002084,2]
[313433401,1707343844185,-866.15872121,0.00020955,2]
[313433402,1707343844196,-2970.67572934,0.00020955,2]
[313433413,1707343846587,-435.34359155,0.00020955,2]
[313433414,1707343846599,-628.869997,0.00020955,2]
[313433415,1707343846644,-11380.6303182,0.00020955,2]
[313433416,1707343846654,-2271.2244386,0.00021,2]
[313433419,1707344114727,155.84028295,0.00015741,2]
[313433420,1707344163005,155.06667867,0.00015741,2]
[313433421,1707344168208,344.03161985,0.00015741,2]
[313433422,1707344169214,155.06667867,0.00015741,2]
[313433423,1707344174031,240.39936388,0.00015741,2]
[313433424,1707344176528,1096.83482457,0.00015741,2]
[313433425,1707344177003,155.06667867,0.00015741,2]
[313433426,1707344180175,155.06667867,0.00015741,2]
[313433427,1707344183211,155.06667867,0.00015741,2]
[313433428,1707344185983,155.06667867,0.00015741,2]
[313433429,1707344186205,344.03161985,0.00015741,2]
[313433430,1707344188150,240.39936388,0.00015741,2]
[313433431,1707344198185,155.06667867,0.00015741,2]
[313433432,1707344198530,1096.83482457,0.00015741,2]
[313433433,1707344203017,155.06667867,0.00015741,2]
[313433434,1707344203939,155.06667867,0.00015741,2]
[313433435,1707344204214,344.03161985,0.00015741,2]
[313433436,1707344207314,216.23717236,0.00015741,2]
[313433437,1707344208037,240.39936388,0.00015741,2]
[313433438,1707344216592,514.91303724,0.00015741,2]
[313433439,1707344216621,581.92178733,0.00015741,2]
[313433440,1707344218176,173.11561875,0.00015741,2]
[313433441,1707344223931,190.60828467,0.00015741,2]
[313433442,1707344225016,155.06667867,0.00015741,2]
[313433443,1707344226280,344.03161985,0.00015741,2]
[313433444,1707344228054,330.89763271,0.00015741,2]
[313433445,1707344236537,558.69087963,0.00015741,2]
[313433446,1707344239016,219.03088038,0.00015741,2]
[313433447,1707344246222,344.03161985,0.00015741,2]
[313433448,1707344263757,336.57343256,0.00015741,2]
[313433449,1707344315840,155.06667867,0.00017643,3]
[313433450,1707344331839,155.06667867,0.00016707,3]
[313433451,1707344353852,155.06667867,0.00016707,3]
[313433452,1707344369845,155.06667867,0.00016707,3]
[313433453,1707344387844,155.06667867,0.00016707,3]
[313433454,1707344401855,155.06667867,0.00016707,3]
[313433455,1707344421850,155.06667867,0.00016707,3]
[313433456,1707344443874,155.06667867,0.00016707,3]
[313433457,1707344461399,21766.0315656,0.00016707,2]
[313433458,1707344461426,68764.21512991,0.00016707,2]
[313433459,1707344463864,155.06667867,0.00016707,3]
[313433460,1707344481862,155.06667867,0.00016707,3]
[313433461,1707344505992,155.06667867,0.00016707,3]
[313433462,1707344525867,155.06667867,0.00016707,3]
[313433463,1707344547887,155.06667867,0.00016707,3]
[313433464,1707344573861,155.06667867,0.00016707,3]
[313433465,1707344589863,155.06667867,0.00016707,3]
[313433466,1707344609879,155.06512735,0.00016707,3]
[313433467,1707344629887,155.0697814,0.00016707,3]
[313433468,1707344702385,155.0697814,0.00017627,3]
[313433469,1707344720389,155.0697814,0.00016009,3]
[313433470,1707344736415,155.0697814,0.00016009,3]
[313433471,1707344758396,155.0697814,0.00016009,3]
[313433473,1707344774401,155.0697814,0.00016009,3]
[313433474,1707344792402,155.0697814,0.00016009,3]
[313433475,1707344810476,155.0697814,0.00016009,3]
[313433476,1707344826415,155.0697814,0.00016009,3]
[313433477,1707344826455,24900.0,0.00016907,2]
[313433478,1707344846414,155.0697814,0.00016009,3]
[313433479,1707344866402,155.0697814,0.00016009,3]
[313433480,1707344874416,342.714599,0.0001663,2]
[313433481,1707344894406,155.0697814,0.00016009,3]
[313433482,1707344904794,250.0,0.00016693,2]
[313433483,1707344912410,155.0697814,0.00016009,3]
[313433484,1707344930407,155.0697814,0.00016009,3]
[313433485,1707344948417,155.0697814,0.00016009,3]
[313433557,1707344968417,155.0697814,0.00016009,3]
[313433583,1707344984417,155.0697814,0.00016009,3]
[313433584,1707344987004,296.2166586,0.00016634,2]
[313433585,1707345006417,155.0697814,0.00016009,3]
[313433586,1707345022415,155.0697814,0.00016007,3]
[313433602,1707345031772,-295.73444606,0.00017345,2]
[313433603,1707345031781,-535.43841798,0.00017346,2]
[313433604,1707345031791,-980.6631799,0.00017346,2]
[313433605,1707345031800,-4303.36032557,0.00017347,2]
[313433606,1707345031820,-308.7327118,0.00017347,2]
[313433636,1707345037909,-512.74356397,0.00017345,2]
[313433638,1707345037924,-2019.33990168,0.00017345,2]
[313433639,1707345037939,-447.2129,0.00017345,2]
[313433640,1707345038419,155.0697814,0.00016007,3]
[313433649,1707345040826,-4205.89,0.00017345,2]
[313433650,1707345040839,-796.48597782,0.00017345,2]
[313433651,1707345040850,-674.48406877,0.00017347,2]
[313433652,1707345040861,-302.58528176,0.00017347,2]
[313433653,1707345040874,-1185.4308143,0.00017347,2]
[313433654,1707345040885,-158.95416115,0.00017352,2]
[313433655,1707345040895,-1485.1533176,0.00017454,2]
[313433656,1707345040909,-310.06201687,0.00017787,2]
[313433657,1707345040919,-1860.39969008,0.00017787,2]
[313433658,1707345041278,-937.851625,0.00017787,2]
[313433659,1707345042153,-9996.77514081,0.00017787,2]
[313433678,1707345042752,-732.02644888,0.00017787,2]
[313433685,1707345042808,-7563.72539524,0.00017787,2]
[313433687,1707345042818,-155.0697814,0.00017787,2]
[313433688,1707345042827,-293.67497372,0.00017788,2]
[313433690,1707345042836,-4775.40014981,0.00017789,2]
[313433887,1707345116926,155.07133281,0.00017603,3]
[313433888,1707345134926,155.07133281,0.00015843,2]
[313433889,1707345158925,155.07133281,0.00015843,2]
[313433911,1707345180934,155.07133281,0.00016008,3]
[313433921,1707345204931,155.07133281,0.00015839,2]
[313433925,1707345220930,155.07133281,0.00015839,2]
[313433927,1707345242937,155.07133281,0.00015839,2]
[313433929,1707345264932,155.07133281,0.00015847,2]
[313433931,1707345286933,155.07133281,0.00015835,2]
[313433932,1707345304959,155.07133281,0.00015832,2]
[313433933,1707345324947,155.07133281,0.00015828,2]
[313433934,1707345340966,155.07133281,0.00015828,2]
[313433935,1707345360952,155.07133281,0.00015827,2]
[313433936,1707345368756,-1854.03688776,0.00042637,120]
[313433937,1707345368781,-2291.87128895,0.00042637,120]
[313433938,1707345368806,-2470.0749016,0.00042637,120]
[313433939,1707345368829,-1649.08663327,0.00042637,120]
[313433940,1707345368854,-500.0,0.00042637,120]
[313433941,1707345368877,-1636.77400746,0.00042637,120]
[313433942,1707345368901,-173.95446152,0.00042637,120]
[313433943,1707345368923,-1075.40519853,0.00042637,30]
[313433944,1707345368946,-661.61610786,0.00042637,30]
[313433945,1707345368968,-207.16775824,0.00042637,30]
[313433946,1707345368990,-1143.87808148,0.00042637,30]
[313433947,1707345369013,-968.96751337,0.00042637,120]
[313433948,1707345369036,-1118.10849656,0.00042637,120]
[313433949,1707345369059,-1569.67051481,0.00042637,65]
[313433950,1707345369082,-314.33194294,0.00042637,120]
[313433951,1707345369106,-151.1388004,0.00042637,30]
[313433952,1707345369128,-2446.27733529,0.00042637,120]
[313433953,1707345369152,-4000.0,0.00042637,30]
[313433954,1707345369175,-201.42397,0.00042637,120]
[313433955,1707345369200,-150.58077427,0.00042637,120]
[313433956,1707345370789,262318.10894673,0.00016,2]
[313433957,1707345378960,155.07133281,0.00015847,2]
[313433958,1707345396960,155.07133281,0.00016007,3]
[313433959,1707345412964,155.07133281,0.00016007,3]
[313433960,1707345430980,155.07133281,0.00016007,3]
[313433961,1707345434963,296.216657,0.00016581,2]
[313433962,1707345456978,155.07133281,0.00016007,3]
[313433963,1707345466368,201.42397,0.00042637,120]
[313433965,1707345474977,155.07133281,0.00016007,3]
[313433966,1707345492990,155.07133281,0.00016007,3]
[313433968,1707345508980,155.07288426,0.00016007,3]
[313433969,1707345528984,155.07288426,0.00016007,3]
[313433970,1707345548987,155.07598723,0.00016007,3]
[313433971,1707345566975,155.08064193,0.00015812,2]
[313433972,1707345582987,155.08684864,0.00015812,2]
[313433976,1707345602997,155.08840039,0.00016007,3]
[313434007,1707345620995,155.08064193,0.00016007,3]
[313434008,1707345641010,155.07753877,0.00016007,3]
[313434009,1707345657115,155.07753877,0.00016007,3]
[313434010,1707345666502,28999.1035859,0.00016692,2]
[313434011,1707345675002,155.07598723,0.00016006,3]
[313434012,1707345697001,155.07443573,0.00016006,3]
[313434013,1707345723179,155.07598723,0.00016007,3]
[313434014,1707345739015,155.07598723,0.00016007,3]
[313434015,1707345761011,155.07598723,0.00016007,3]
[313434016,1707345779011,155.07598723,0.00016007,3]
[313434018,1707345797033,155.07598723,0.00016007,3]
[313434019,1707345819021,155.07598723,0.00016007,3]
[313434020,1707345837017,155.07598723,0.00016007,3]
[313434021,1707345853019,155.07598723,0.00016007,3]
[313434022,1707345871017,155.07598723,0.00016007,3]
[313434025,1707345891028,155.07598723,0.00016007,3]
[313434030,1707345905538,4000.0,0.00042553,30]
[313434033,1707345909018,155.07598723,0.00016007,3]
[313434039,1707345931097,155.07598723,0.00016007,3]
[313434042,1707345949031,155.07598723,0.00016007,3]
[313434046,1707345969025,155.07598723,0.00016007,3]
[313434050,1707345987026,155.07598723,0.00016007,3]
[313434053,1707346005046,155.07598723,0.00016007,3]
[313434056,1707346019025,155.07598723,0.00016007,3]
[313434057,1707346039028,155.07443573,0.00016007,3]
[313434058,1707346061063,155.07443573,0.00016007,3]
[313434059,1707346063874,200.0,0.00042544,120]
[313434060,1707346083032,155.07443573,0.00016007,3]
[313434061,1707346101036,155.07443573,0.00016007,3]
[313434062,1707346119879,155.07443573,0.00016007,3]
[313434063,1707346133028,155.07443573,0.00015762,2]
[313434069,1707346153036,155.07443573,0.00015762,2]
[313434117,1707346167042,155.07443573,0.00015762,2]
[313434118,1707346185043,155.07443573,0.00016007,3]
[313434119,1707346203040,155.07443573,0.00016007,3]
[313434120,1707346219044,155.07443573,0.00015749,2]
[313434152,1707346231895,-199.73989634,0.00017498,2]
[313434154,1707346231904,-201.50381503,0.00017498,2]
[313434156,1707346231913,-155.07443573,0.00017498,2]
[313434158,1707346231922,-820.711415,0.00017499,2]
[313434160,1707346231931,-155.07443573,0.00017499,2]
[313434162,1707346231941,-19918.13279308,0.00017499,2]
[313434164,1707346231950,-500.0,0.000175,2]
[313434167,1707346231959,-167.15951964,0.000175,2]
[313434169,1707346231969,-37061.66416696,0.000175,2]
[313434172,1707346231978,-4179.85662615,0.00017501,2]
[313434175,1707346231987,-1488.01609606,0.00017501,2]
[313434178,1707346231997,-590.02632581,0.00017501,2]
[313434181,1707346232006,-294.51312657,0.00017501,2]
[313434184,1707346232015,-155.07443573,0.00017501,2]
[313434187,1707346232025,-1297.15038027,0.00017502,2]
[313434190,1707346232034,-155.37425387,0.00017502,2]
[313434192,1707346232043,-640.35816557,0.00017503,2]
[313434195,1707346232052,-7981.67234347,0.00017503,2]
[313434198,1707346232062,-352.18460138,0.00017504,2]
[313434201,1707346232072,-155.07443573,0.00017504,2]
[313434204,1707346232081,-2044.6804249,0.00017504,2]
[313434207,1707346232090,-535.43841798,0.00017505,2]
[313434210,1707346232099,-155.07443573,0.00017505,2]
[313434213,1707346232109,-3488.04206208,0.00017508,2]
[313434488,1707346237044,155.07443573,0.00015749,2]
[313434503,1707346238084,-523.57423326,0.00017497,2]
[313434504,1707346238094,-15647.09244733,0.00017508,2]
[313434505,1707346238104,-263.77227934,0.00017513,2]
[313434506,1707346238113,-214.05113646,0.00017513,2]
[313434507,1707346238123,-3039.61608595,0.00017602,2]
[313434508,1707346238132,-2331.94477685,0.00017603,2]
[313434509,1707346238141,-590.12981611,0.00017603,2]
[313434510,1707346238151,-151.0,0.00017607,2]
[313434511,1707346238160,-151.0,0.00017607,2]
[313434512,1707346238169,-151.0,0.00017607,2]
[313434513,1707346238178,-819.865414,0.00017607,2]
[313434514,1707346238187,-819.865414,0.00017607,2]
[313434515,1707346238196,-151.0,0.00017607,2]
[313434516,1707346238206,-151.0,0.00017607,2]
[313434517,1707346238215,-235.364499,0.00017607,2]
[313434518,1707346238224,-235.364499,0.00017607,2]
[313434519,1707346238233,-151.0,0.00017607,2]
[313434520,1707346238243,-2173.696,0.00017607,2]
[313434521,1707346238252,-2173.696,0.00017607,2]
[313434523,1707346238261,-18807.58537291,0.00017607,2]
[313434524,1707346238270,-3327.82527577,0.00017609,2]
[313434525,1707346238279,-202.3250463,0.00017688,2]
[313434526,1707346238288,-151.0,0.00017786,2]
[313434527,1707346238298,-151.0,0.00017786,2]
[313434528,1707346238307,-151.0,0.00017786,2]
[313434529,1707346238316,-151.0,0.00017786,2]
[313434530,1707346238325,-151.0,0.00017786,2]
[313434531,1707346238334,-151.0,0.00017786,2]
[313434532,1707346238344,-151.0,0.00017786,2]
[313434533,1707346238353,-819.865414,0.00017786,2]
[313434534,1707346238362,-819.865414,0.00017786,2]
[313434535,1707346238371,-151.0,0.00017786,2]
[313434536,1707346238380,-151.0,0.00017786,2]
[313434537,1707346238390,-235.364499,0.00017786,2]
[313434538,1707346238398,-235.364499,0.00017786,2]
[313434539,1707346238408,-151.0,0.00017786,2]
[313434540,1707346238417,-2173.696,0.00017786,2]
[313434541,1707346238426,-2173.696,0.00017786,2]
[313434542,1707346238436,-375.96964863,0.00017786,2]
[313434543,1707346238445,-2109.6618422,0.00017786,2]
[313434544,1707346238454,-1743.90819804,0.00017786,2]
[313434545,1707346238464,-155.55930946,0.00017786,2]
[313434546,1707346238473,-156.43658402,0.00017786,2]
[313434547,1707346238482,-151.0,0.00017787,2]
[313434548,1707346238491,-151.0,0.00017787,2]
[313434549,1707346238500,-151.0,0.00017787,2]
[313434550,1707346238509,-151.0,0.00017787,2]
[313434551,1707346238518,-151.0,0.00017787,2]
[313434552,1707346238527,-151.0,0.00017787,2]
[313434553,1707346238536,-151.0,0.00017787,2]
[313434554,1707346238545,-819.865414,0.00017787,2]
[313434555,1707346238555,-819.865414,0.00017787,2]
[313434556,1707346238564,-151.0,0.00017787,2]
[313434557,1707346238573,-151.0,0.00017787,2]
[313434558,1707346238582,-235.364499,0.00017787,2]
[313434559,1707346238591,-235.364499,0.00017787,2]
[313434560,1707346238600,-151.0,0.00017787,2]
[313434561,1707346238696,-2173.696,0.00017787,2]
[313434562,1707346238710,-2173.696,0.00017787,2]
[313434563,1707346238719,-1687.29456415,0.00017787,2]
[313434564,1707346238730,-556.62730665,0.00017787,2]
[313434565,1707346238739,-2045.71437263,0.00017787,2]
[313434566,1707346238748,-155.19223926,0.00017787,2]
[313434567,1707346238757,-309.89769592,0.00017787,2]
[313434568,1707346238767,-151.0,0.00017788,2]
[313434569,1707346238776,-151.0,0.00017788,2]
[313434570,1707346238785,-293.924429,0.00017788,2]
[313434571,1707346238795,-151.0,0.00017788,2]
[313434572,1707346238803,-226.96975,0.00017788,2]
[313434573,1707346238813,-287.482269,0.00017788,2]
[313434574,1707346238823,-151.0,0.00017788,2]
[313434575,1707346238832,-151.0,0.00017788,2]
[313434576,1707346238841,-151.0,0.00017788,2]
[313434577,1707346238850,-151.0,0.00017788,2]
[313434578,1707346238859,-151.0,0.00017788,2]
[313434579,1707346238869,-151.0,0.00017788,2]
[313434580,1707346238878,-151.0,0.00017788,2]
[313434581,1707346238887,-231.199887,0.00017788,2]
[313434582,1707346238896,-819.865414,0.00017788,2]
[313434583,1707346238906,-819.865414,0.00017788,2]
[313434584,1707346238915,-819.865414,0.00017788,2]